[Event "November 21 Late 2023"]
[Site "https://www.chess.com"]
[Date "2023.11.21"]
[Round "5"]
[White "Awoki, Daniel Teidi"]
[Black "Desideri, Ricardo Maruchi"]
[Result "0-1"]
[Board "151"]
[TimeControl "180+1"]
[WhiteFideId "2100827"]
[BlackFideId "2110440"]
[WhiteElo "2077"]
[BlackElo "1945"]
[WhiteTeam "BRA"]
[BlackTeam "BRA"]
[WhiteClock "0:00:22"]
[BlackClock "0:00:21"]

1. e4 {[%clk 0:02:57]}  c5 {[%clk 0:02:59]} 2. Nf3 {[%clk 0:02:56]}  d6 {[%clk 0:02:59]} 3. d4 {[%clk 0:02:54]}  cxd4 {[%clk 0:03:00]} 4. Nxd4 {[%clk 0:02:55]}  Nf6 {[%clk 0:03:00]} 5. Nc3 {[%clk 0:02:56]}  a6 {[%clk 0:03:00]} 6. Bg5 {[%clk 0:02:54]}  e6 {[%clk 0:02:59]} 7. Qd2 {[%clk 0:02:53]}  h6 {[%clk 0:02:56]} 8. Bh4 {[%clk 0:02:43]}  Qb6 {[%clk 0:02:55]} 9. Nb3 {[%clk 0:02:36]}  Be7 {[%clk 0:02:49]} 10. O-O-O {[%clk 0:02:34]}  Nxe4 {[%clk 0:02:37]} 11. Nxe4 {[%clk 0:02:34]}  Bxh4 {[%clk 0:02:36]} 12. Nxd6+ {[%clk 0:02:34]}  Ke7 {[%clk 0:02:20]} 13. Kb1 {[%clk 0:02:10]}  Bd7 {[%clk 0:01:24]} 14. g3 {[%clk 0:01:57]}  Bf6 {[%clk 0:01:22]} 15. Bg2 {[%clk 0:01:48]}  Rd8 {[%clk 0:01:12]} 16. Nc4 {[%clk 0:01:45]}  Qc7 {[%clk 0:01:00]} 17. Nca5 {[%clk 0:01:46]}  Nc6 {[%clk 0:00:57]} 18. Nxc6+ {[%clk 0:01:38]}  Bxc6 {[%clk 0:00:56]} 19. Qb4+ {[%clk 0:01:37]}  Ke8 {[%clk 0:00:55]} 20. Bxc6+ {[%clk 0:01:36]}  Qxc6 {[%clk 0:00:51]} 21. Rhe1 {[%clk 0:01:28]}  Rac8 {[%clk 0:00:48]} 22. c3 {[%clk 0:01:22]}  Be7 {[%clk 0:00:46]} 23. Qg4 {[%clk 0:01:19]}  Kf8 {[%clk 0:00:45]} 24. Nd4 {[%clk 0:01:15]}  Qb6 {[%clk 0:00:38]} 25. Ka1 {[%clk 0:00:57]}  Bf6 {[%clk 0:00:36]} 26. Nb3 {[%clk 0:00:53]}  Rxd1+ {[%clk 0:00:34]} 27. Rxd1 {[%clk 0:00:54]}  Kg8 {[%clk 0:00:31]} 28. Qf3 {[%clk 0:00:48]}  a5 {[%clk 0:00:27]} 29. a4 {[%clk 0:00:38]}  Qxb3 {[%clk 0:00:26]} 30. Qg4 {[%clk 0:00:21]}  Rxc3 {[%clk 0:00:21]} 31. bxc3 {[%clk 0:00:22]} 0-1

[Event "November 21 Late 2023"]
[Site "https://www.chess.com"]
[Date "2023.11.21"]
[Round "6"]
[White "Xiong, Jeffery"]
[Black "Nakamura, Hikaru"]
[Result "1/2-1/2"]
[Board "1"]
[TimeControl "180+1"]
[WhiteFideId "2047640"]
[BlackFideId "2016192"]
[WhiteElo "2726"]
[BlackElo "2874"]
[WhiteTeam "USA"]
[BlackTeam "USA"]
[WhiteClock "0:02:03"]
[BlackClock "0:02:32"]

1. d4 {[%clk 0:03:00]}  Nf6 {[%clk 0:02:59]} 2. c4 {[%clk 0:03:00]}  e6 {[%clk 0:02:59]} 3. Nc3 {[%clk 0:03:00]}  Bb4 {[%clk 0:02:59]} 4. Nf3 {[%clk 0:03:01]}  O-O {[%clk 0:02:59]} 5. Bg5 {[%clk 0:03:01]}  c5 {[%clk 0:02:56]} 6. e3 {[%clk 0:03:01]}  cxd4 {[%clk 0:02:55]} 7. exd4 {[%clk 0:03:01]}  d5 {[%clk 0:02:56]} 8. Rc1 {[%clk 0:03:01]}  Be7 {[%clk 0:02:43]} 9. Be2 {[%clk 0:02:50]}  dxc4 {[%clk 0:02:40]} 10. Bxc4 {[%clk 0:02:49]}  Nc6 {[%clk 0:02:41]} 11. O-O {[%clk 0:02:49]}  h6 {[%clk 0:02:41]} 12. Bh4 {[%clk 0:02:45]}  Nh5 {[%clk 0:02:41]} 13. Bxe7 {[%clk 0:02:44]}  Nxe7 {[%clk 0:02:42]} 14. d5 {[%clk 0:02:39]}  exd5 {[%clk 0:02:40]} 15. Nxd5 {[%clk 0:02:40]}  Nxd5 {[%clk 0:02:39]} 16. Qxd5 {[%clk 0:02:41]}  Qxd5 {[%clk 0:02:34]} 17. Bxd5 {[%clk 0:02:42]}  Nf6 {[%clk 0:02:35]} 18. Bb3 {[%clk 0:02:03]}  Be6 {[%clk 0:02:32]} 1/2-1/2

[Event "November 21 Late 2023"]
[Site "https://www.chess.com"]
[Date "2023.11.21"]
[Round "6"]
[White "Esipenko, Andrey"]
[Black "Matlakov, Maxim"]
[Result "0-1"]
[Board "2"]
[TimeControl "180+1"]
[WhiteFideId "24175439"]
[BlackFideId "4168003"]
[WhiteElo "2615"]
[BlackElo "2638"]
[WhiteTeam "FID"]
[BlackTeam "RUS"]
[WhiteClock "0:00:00"]
[BlackClock "0:00:12"]

1. Nf3 {[%clk 0:02:58]}  Nf6 {[%clk 0:02:59]} 2. g3 {[%clk 0:02:58]}  b6 {[%clk 0:02:59]} 3. c4 {[%clk 0:02:57]}  Bb7 {[%clk 0:02:59]} 4. d4 {[%clk 0:02:56]}  e6 {[%clk 0:02:59]} 5. Bg2 {[%clk 0:02:56]}  Be7 {[%clk 0:02:59]} 6. O-O {[%clk 0:02:56]}  O-O {[%clk 0:02:59]} 7. h4 {[%clk 0:02:57]}  a5 {[%clk 0:02:55]} 8. Re1 {[%clk 0:02:51]}  Na6 {[%clk 0:02:54]} 9. Nc3 {[%clk 0:02:48]}  d5 {[%clk 0:02:49]} 10. Ne5 {[%clk 0:02:45]}  c5 {[%clk 0:02:44]} 11. Be3 {[%clk 0:02:38]}  cxd4 {[%clk 0:02:42]} 12. Bxd4 {[%clk 0:02:37]}  Nc5 {[%clk 0:02:42]} 13. Rc1 {[%clk 0:02:35]}  Rc8 {[%clk 0:02:41]} 14. a3 {[%clk 0:02:20]}  Nce4 {[%clk 0:02:13]} 15. cxd5 {[%clk 0:02:17]}  Nxc3 {[%clk 0:02:11]} 16. Rxc3 {[%clk 0:02:18]}  Rxc3 {[%clk 0:02:09]} 17. Bxc3 {[%clk 0:02:19]}  Nxd5 {[%clk 0:02:07]} 18. Bd4 {[%clk 0:02:18]}  Qc7 {[%clk 0:01:59]} 19. Qc1 {[%clk 0:02:15]}  Bc5 {[%clk 0:01:51]} 20. Bxc5 {[%clk 0:01:49]}  bxc5 {[%clk 0:01:52]} 21. Nc4 {[%clk 0:01:44]}  Rb8 {[%clk 0:01:49]} 22. Rd1 {[%clk 0:01:24]}  h6 {[%clk 0:01:49]} 23. Rd2 {[%clk 0:01:24]}  a4 {[%clk 0:01:41]} 24. Rc2 {[%clk 0:01:10]}  Ba6 {[%clk 0:01:38]} 25. Bf3 {[%clk 0:01:06]}  Rd8 {[%clk 0:01:08]} 26. Nd2 {[%clk 0:00:34]}  Qe5 {[%clk 0:01:07]} 27. e3 {[%clk 0:00:22]}  Nxe3 {[%clk 0:01:02]} 28. fxe3 {[%clk 0:00:23]}  Qxg3+ {[%clk 0:01:02]} 29. Bg2 {[%clk 0:00:18]}  Qxe3+ {[%clk 0:00:59]} 30. Kh1 {[%clk 0:00:19]}  Be2 {[%clk 0:00:45]} 31. Nf1 {[%clk 0:00:17]}  Qf2 {[%clk 0:00:39]} 32. Rd2 {[%clk 0:00:12]}  Rd4 {[%clk 0:00:25]} 33. Rxd4 {[%clk 0:00:08]}  cxd4 {[%clk 0:00:26]} 34. Qd2 {[%clk 0:00:03]}  d3 {[%clk 0:00:25]} 35. Nh2 {[%clk 0:00:01]}  Qxh4 {[%clk 0:00:23]} 36. Kg1 {[%clk 0:00:02]}  Qd4+ {[%clk 0:00:22]} 37. Kh1 {[%clk 0:00:02]}  e5 {[%clk 0:00:21]} 38. Nf3 {[%clk 0:00:03]}  Qf2 {[%clk 0:00:18]} 39. Nh2 {[%clk 0:00:01]}  f5 {[%clk 0:00:16]} 40. Qb4 {[%clk 0:00:02]}  e4 {[%clk 0:00:14]} 41. Qb8+ {[%clk 0:00:01]}  Kh7 {[%clk 0:00:14]} 42. Qe5 {[%clk 0:00:00]}  d2 {[%clk 0:00:12]} 0-1

[Event "November 21 Late 2023"]
[Site "https://www.chess.com"]
[Date "2023.11.21"]
[Round "6"]
[White "Muradli, Mahammad"]
[Black "Carlsen, Magnus"]
[Result "1/2-1/2"]
[Board "3"]
[TimeControl "180+1"]
[WhiteFideId "13409301"]
[BlackFideId "1503014"]
[WhiteElo "2551"]
[BlackElo "2887"]
[WhiteTeam "AZE"]
[BlackTeam "NOR"]
[WhiteClock "0:00:03"]
[BlackClock "0:00:19"]

1. Nf3 {[%clk 0:03:00]}  Nf6 {[%clk 0:02:59]} 2. c4 {[%clk 0:03:00]}  a5 {[%clk 0:02:59]} 3. h4 {[%clk 0:02:58]}  b6 {[%clk 0:02:56]} 4. g3 {[%clk 0:02:58]}  Bb7 {[%clk 0:02:56]} 5. Bg2 {[%clk 0:02:58]}  e6 {[%clk 0:02:51]} 6. O-O {[%clk 0:02:56]}  Be7 {[%clk 0:02:51]} 7. Nc3 {[%clk 0:02:56]}  O-O {[%clk 0:02:52]} 8. Re1 {[%clk 0:02:54]}  d5 {[%clk 0:02:47]} 9. cxd5 {[%clk 0:02:51]}  exd5 {[%clk 0:02:48]} 10. d4 {[%clk 0:02:51]}  Na6 {[%clk 0:02:48]} 11. Bf4 {[%clk 0:02:51]}  Re8 {[%clk 0:02:48]} 12. Rc1 {[%clk 0:02:49]}  c5 {[%clk 0:02:45]} 13. e3 {[%clk 0:02:47]}  Bf8 {[%clk 0:02:43]} 14. Ne5 {[%clk 0:02:42]}  Nc7 {[%clk 0:02:40]} 15. g4 {[%clk 0:02:26]}  Ne6 {[%clk 0:02:26]} 16. Bg3 {[%clk 0:02:26]}  Rc8 {[%clk 0:02:25]} 17. g5 {[%clk 0:01:47]}  cxd4 {[%clk 0:02:25]} 18. exd4 {[%clk 0:01:43]}  Ne4 {[%clk 0:02:25]} 19. Nxe4 {[%clk 0:01:19]}  Rxc1 {[%clk 0:02:24]} 20. Qxc1 {[%clk 0:01:20]}  dxe4 {[%clk 0:02:24]} 21. Bxe4 {[%clk 0:01:20]}  Bxe4 {[%clk 0:02:23]} 22. Rxe4 {[%clk 0:01:21]}  Nxd4 {[%clk 0:02:23]} 23. Qc4 {[%clk 0:01:18]}  Ne6 {[%clk 0:02:20]} 24. Re3 {[%clk 0:01:07]}  Bc5 {[%clk 0:02:13]} 25. Rd3 {[%clk 0:01:04]}  Qc8 {[%clk 0:02:05]} 26. Rd7 {[%clk 0:00:57]}  Rf8 {[%clk 0:01:37]} 27. Qd5 {[%clk 0:00:46]}  Rd8 {[%clk 0:01:24]} 28. h5 {[%clk 0:00:30]}  Rxd7 {[%clk 0:01:21]} 29. Nxd7 {[%clk 0:00:31]}  Bd4 {[%clk 0:00:50]} 30. g6 {[%clk 0:00:24]}  hxg6 {[%clk 0:00:51]} 31. hxg6 {[%clk 0:00:24]}  Qe8 {[%clk 0:00:49]} 32. Be5 {[%clk 0:00:16]}  Bxe5 {[%clk 0:00:47]} 33. Nxe5 {[%clk 0:00:17]}  fxg6 {[%clk 0:00:45]} 34. Nc4 {[%clk 0:00:16]}  Kh7 {[%clk 0:00:38]} 35. Qh1+ {[%clk 0:00:12]}  Kg8 {[%clk 0:00:37]} 36. Qd5 {[%clk 0:00:12]}  g5 {[%clk 0:00:28]} 37. Nxb6 {[%clk 0:00:10]}  Qg6 {[%clk 0:00:26]} 38. Nd7 {[%clk 0:00:07]}  Qf7 {[%clk 0:00:21]} 39. Ne5 {[%clk 0:00:05]}  Qf5 {[%clk 0:00:21]} 40. Qa8+ {[%clk 0:00:03]}  Kh7 {[%clk 0:00:21]} 41. Qh1+ {[%clk 0:00:04]}  Kg8 {[%clk 0:00:21]} 42. Qa8+ {[%clk 0:00:04]}  Kh7 {[%clk 0:00:19]} 43. Qh1+ {[%clk 0:00:04]}  Kg8 {[%clk 0:00:19]} 44. Qa8+ {[%clk 0:00:03]} 1/2-1/2

[Event "November 21 Late 2023"]
[Site "https://www.chess.com"]
[Date "2023.11.21"]
[Round "6"]
[White "Deac, Bogdan-Daniel"]
[Black "Le, Quang Liem"]
[Result "0-1"]
[Board "4"]
[TimeControl "180+1"]
[WhiteFideId "1226380"]
[BlackFideId "12401137"]
[WhiteElo "2641"]
[BlackElo "2665"]
[WhiteTeam "ROU"]
[BlackTeam "VIE"]
[WhiteClock "0:00:00"]
[BlackClock "0:00:05"]

1. e4 {[%clk 0:03:00]}  c5 {[%clk 0:02:59]} 2. h3 {[%clk 0:03:00]}  Nc6 {[%clk 0:02:59]} 3. Bb5 {[%clk 0:02:59]}  g6 {[%clk 0:02:55]} 4. Bxc6 {[%clk 0:02:49]}  bxc6 {[%clk 0:02:55]} 5. Ne2 {[%clk 0:02:41]}  Bg7 {[%clk 0:02:54]} 6. d3 {[%clk 0:02:42]}  d6 {[%clk 0:02:45]} 7. O-O {[%clk 0:02:39]}  Nf6 {[%clk 0:02:38]} 8. f4 {[%clk 0:02:37]}  c4 {[%clk 0:02:37]} 9. Nbc3 {[%clk 0:02:25]}  cxd3 {[%clk 0:02:35]} 10. cxd3 {[%clk 0:02:26]}  O-O {[%clk 0:02:35]} 11. Be3 {[%clk 0:02:24]}  c5 {[%clk 0:02:23]} 12. f5 {[%clk 0:02:21]}  Rb8 {[%clk 0:02:21]} 13. Qd2 {[%clk 0:02:14]}  Ba6 {[%clk 0:02:13]} 14. Rad1 {[%clk 0:02:11]}  Nd7 {[%clk 0:01:58]} 15. b3 {[%clk 0:01:59]}  Ne5 {[%clk 0:01:57]} 16. d4 {[%clk 0:01:38]}  cxd4 {[%clk 0:01:58]} 17. Bxd4 {[%clk 0:01:38]}  Qd7 {[%clk 0:01:56]} 18. Nd5 {[%clk 0:00:59]}  Qb7 {[%clk 0:01:32]} 19. f6 {[%clk 0:00:32]}  exf6 {[%clk 0:01:33]} 20. Nxf6+ {[%clk 0:00:32]}  Kh8 {[%clk 0:01:33]} 21. Rf2 {[%clk 0:00:27]}  Rbc8 {[%clk 0:01:27]} 22. Nc3 {[%clk 0:00:26]}  Qb4 {[%clk 0:01:11]} 23. Nfd5 {[%clk 0:00:16]}  Qa5 {[%clk 0:01:09]} 24. Qe3 {[%clk 0:00:11]}  Bb7 {[%clk 0:00:50]} 25. Kh1 {[%clk 0:00:05]}  Bxd5 {[%clk 0:00:19]} 26. Nxd5 {[%clk 0:00:05]}  a6 {[%clk 0:00:19]} 27. Bc3 {[%clk 0:00:04]}  Qb5 {[%clk 0:00:18]} 28. Bd4 {[%clk 0:00:04]}  Qb7 {[%clk 0:00:18]} 29. a4 {[%clk 0:00:04]}  Rce8 {[%clk 0:00:17]} 30. Qg3 {[%clk 0:00:04]}  f5 {[%clk 0:00:18]} 31. Bb2 {[%clk 0:00:03]}  fxe4 {[%clk 0:00:18]} 32. Rxf8+ {[%clk 0:00:03]}  Rxf8 {[%clk 0:00:18]} 33. Kh2 {[%clk 0:00:02]}  Nf3+ {[%clk 0:00:17]} 34. gxf3 {[%clk 0:00:02]}  Bxb2 {[%clk 0:00:18]} 35. f4 {[%clk 0:00:02]}  Bg7 {[%clk 0:00:17]} 36. Qe3 {[%clk 0:00:03]}  Rb8 {[%clk 0:00:16]} 37. b4 {[%clk 0:00:02]}  Qc6 {[%clk 0:00:16]} 38. Qxe4 {[%clk 0:00:02]}  Qxa4 {[%clk 0:00:16]} 39. Re1 {[%clk 0:00:03]}  Rf8 {[%clk 0:00:16]} 40. Re2 {[%clk 0:00:03]}  Qb3 {[%clk 0:00:16]} 41. Re3 {[%clk 0:00:02]}  Qa2+ {[%clk 0:00:16]} 42. Re2 {[%clk 0:00:03]}  Qa1 {[%clk 0:00:16]} 43. Qd3 {[%clk 0:00:03]}  Qf1 {[%clk 0:00:16]} 44. Qe3 {[%clk 0:00:02]}  Rc8 {[%clk 0:00:14]} 45. Rf2 {[%clk 0:00:02]}  Qc4 {[%clk 0:00:12]} 46. Rd2 {[%clk 0:00:02]}  Qb5 {[%clk 0:00:11]} 47. Qe2 {[%clk 0:00:02]}  Qb7 {[%clk 0:00:10]} 48. Qd3 {[%clk 0:00:02]}  Rf8 {[%clk 0:00:10]} 49. Kg3 {[%clk 0:00:02]}  Qc6 {[%clk 0:00:09]} 50. Rc2 {[%clk 0:00:02]}  Qa4 {[%clk 0:00:09]} 51. Rc7 {[%clk 0:00:02]}  Qa1 {[%clk 0:00:09]} 52. Rc2 {[%clk 0:00:02]}  Qe1+ {[%clk 0:00:08]} 53. Kg2 {[%clk 0:00:02]}  Re8 {[%clk 0:00:09]} 54. Rd2 {[%clk 0:00:01]}  Qc1 {[%clk 0:00:08]} 55. Rc2 {[%clk 0:00:01]}  Qe1 {[%clk 0:00:08]} 56. Rd2 {[%clk 0:00:01]}  Rc8 {[%clk 0:00:08]} 57. Rc2 {[%clk 0:00:01]}  Rf8 {[%clk 0:00:07]} 58. Re2 {[%clk 0:00:02]}  Qa1 {[%clk 0:00:07]} 59. Qe4 {[%clk 0:00:01]}  Qd1 {[%clk 0:00:05]} 60. Rf2 {[%clk 0:00:01]}  Qc1 {[%clk 0:00:05]} 61. f5 {[%clk 0:00:01]}  gxf5 {[%clk 0:00:05]} 62. Rxf5 {[%clk 0:00:00]}  Rg8 {[%clk 0:00:05]} 0-1

[Event "November 21 Late 2023"]
[Site "https://www.chess.com"]
[Date "2023.11.21"]
[Round "6"]
[White "Theodorou, Nikolas"]
[Black "Bortnyk, Mykola"]
[Result "1-0"]
[Board "5"]
[TimeControl "180+1"]
[WhiteFideId "4262875"]
[BlackFideId "14120836"]
[WhiteElo "2525"]
[BlackElo "2592"]
[WhiteTeam "GRE"]
[BlackTeam "UKR"]
[WhiteClock "0:00:27"]
[BlackClock "0:00:05"]

1. Nf3 {[%clk 0:03:00]}  c5 {[%clk 0:02:58]} 2. b3 {[%clk 0:03:01]}  d5 {[%clk 0:02:58]} 3. Bb2 {[%clk 0:03:00]}  f6 {[%clk 0:02:58]} 4. e4 {[%clk 0:03:00]}  dxe4 {[%clk 0:02:55]} 5. Nh4 {[%clk 0:03:01]}  g6 {[%clk 0:02:52]} 6. Nc3 {[%clk 0:03:00]}  e5 {[%clk 0:02:46]} 7. Nxe4 {[%clk 0:03:00]}  f5 {[%clk 0:02:23]} 8. Bb5+ {[%clk 0:02:31]}  Bd7 {[%clk 0:02:20]} 9. Bxd7+ {[%clk 0:02:23]}  Nxd7 {[%clk 0:02:21]} 10. Nxf5 {[%clk 0:02:24]}  gxf5 {[%clk 0:02:15]} 11. Qh5+ {[%clk 0:02:24]}  Ke7 {[%clk 0:02:15]} 12. Qxf5 {[%clk 0:02:19]}  Bg7 {[%clk 0:01:46]} 13. Ng5 {[%clk 0:02:19]}  Nh6 {[%clk 0:01:38]} 14. Qe6+ {[%clk 0:02:18]}  Kf8 {[%clk 0:01:38]} 15. Qd6+ {[%clk 0:02:18]}  Ke8 {[%clk 0:01:33]} 16. Ne6 {[%clk 0:02:17]}  Qe7 {[%clk 0:01:25]} 17. Nc7+ {[%clk 0:01:49]}  Kf8 {[%clk 0:01:13]} 18. Ne6+ {[%clk 0:01:45]}  Kf7 {[%clk 0:01:10]} 19. Qxe7+ {[%clk 0:01:46]}  Kxe7 {[%clk 0:01:11]} 20. Nxg7 {[%clk 0:01:46]}  Rhg8 {[%clk 0:01:12]} 21. Nh5 {[%clk 0:01:47]}  Rxg2 {[%clk 0:01:12]} 22. f4 {[%clk 0:01:29]}  Rf8 {[%clk 0:01:08]} 23. fxe5 {[%clk 0:01:18]}  Ng4 {[%clk 0:00:54]} 24. O-O-O {[%clk 0:00:59]}  Nf2 {[%clk 0:00:54]} 25. Rhg1 {[%clk 0:01:00]}  Rxh2 {[%clk 0:00:50]} 26. Rg7+ {[%clk 0:01:00]}  Kd8 {[%clk 0:00:47]} 27. e6 {[%clk 0:00:59]}  Nxd1 {[%clk 0:00:31]} 28. e7+ {[%clk 0:00:40]}  Kc8 {[%clk 0:00:32]} 29. exf8=Q+ {[%clk 0:00:41]}  Nxf8 {[%clk 0:00:32]} 30. Kxd1 {[%clk 0:00:36]}  Rxh5 {[%clk 0:00:24]} 31. Rg8 {[%clk 0:00:36]}  Rf5 {[%clk 0:00:16]} 32. Bg7 {[%clk 0:00:36]}  Kd7 {[%clk 0:00:14]} 33. Rxf8 {[%clk 0:00:36]}  Rg5 {[%clk 0:00:14]} 34. Rf7+ {[%clk 0:00:36]}  Kc6 {[%clk 0:00:14]} 35. Bc3 {[%clk 0:00:33]}  h5 {[%clk 0:00:14]} 36. Rh7 {[%clk 0:00:34]}  b5 {[%clk 0:00:14]} 37. a3 {[%clk 0:00:33]}  a6 {[%clk 0:00:13]} 38. b4 {[%clk 0:00:31]}  cxb4 {[%clk 0:00:13]} 39. axb4 {[%clk 0:00:32]}  Rg1+ {[%clk 0:00:12]} 40. Ke2 {[%clk 0:00:32]}  Rh1 {[%clk 0:00:13]} 41. Kf2 {[%clk 0:00:32]}  Rh4 {[%clk 0:00:11]} 42. Kg3 {[%clk 0:00:31]}  Rg4+ {[%clk 0:00:12]} 43. Kf3 {[%clk 0:00:31]}  Rh4 {[%clk 0:00:12]} 44. Rh6+ {[%clk 0:00:30]}  Kb7 {[%clk 0:00:13]} 45. Kg3 {[%clk 0:00:29]}  Rg4+ {[%clk 0:00:12]} 46. Kh3 {[%clk 0:00:29]}  a5 {[%clk 0:00:05]} 47. Rxh5 {[%clk 0:00:27]} 1-0

[Event "November 21 Late 2023"]
[Site "https://www.chess.com"]
[Date "2023.11.21"]
[Round "6"]
[White "Krzyzanowski, Marcin"]
[Black "Grischuk, Alexander"]
[Result "0-1"]
[Board "6"]
[TimeControl "180+1"]
[WhiteFideId "1132199"]
[BlackFideId "4126025"]
[WhiteElo "2471"]
[BlackElo "2699"]
[WhiteTeam "POL"]
[BlackTeam "RUS"]
[WhiteClock "0:00:01"]
[BlackClock "0:00:04"]

1. e4 {[%clk 0:03:00]}  e5 {[%clk 0:02:59]} 2. Nf3 {[%clk 0:03:01]}  Nc6 {[%clk 0:02:59]} 3. Bc4 {[%clk 0:02:59]}  Bc5 {[%clk 0:02:56]} 4. c3 {[%clk 0:02:59]}  Nf6 {[%clk 0:02:56]} 5. d3 {[%clk 0:02:59]}  O-O {[%clk 0:02:55]} 6. O-O {[%clk 0:02:59]}  d5 {[%clk 0:02:53]} 7. exd5 {[%clk 0:03:00]}  Nxd5 {[%clk 0:02:54]} 8. Re1 {[%clk 0:03:00]}  Bg4 {[%clk 0:02:52]} 9. h3 {[%clk 0:03:01]}  Bh5 {[%clk 0:02:52]} 10. a4 {[%clk 0:03:01]}  a5 {[%clk 0:02:49]} 11. Nbd2 {[%clk 0:03:00]}  Nb6 {[%clk 0:02:44]} 12. Bb5 {[%clk 0:03:01]}  Bd6 {[%clk 0:02:43]} 13. Ne4 {[%clk 0:03:01]}  Na7 {[%clk 0:02:29]} 14. Ng3 {[%clk 0:02:58]}  Bg6 {[%clk 0:02:18]} 15. Bc4 {[%clk 0:02:45]}  Nxc4 {[%clk 0:02:16]} 16. dxc4 {[%clk 0:02:44]}  Nc6 {[%clk 0:02:09]} 17. Bg5 {[%clk 0:02:43]}  f6 {[%clk 0:02:07]} 18. Be3 {[%clk 0:02:44]}  Be7 {[%clk 0:01:44]} 19. Nh4 {[%clk 0:02:43]}  Qxd1 {[%clk 0:01:44]} 20. Raxd1 {[%clk 0:02:44]}  Bf7 {[%clk 0:01:43]} 21. Nhf5 {[%clk 0:02:41]}  Rfd8 {[%clk 0:01:38]} 22. Nxe7+ {[%clk 0:02:37]}  Nxe7 {[%clk 0:01:39]} 23. b3 {[%clk 0:02:36]}  Bg6 {[%clk 0:01:17]} 24. Rc1 {[%clk 0:02:19]}  Nc6 {[%clk 0:01:12]} 25. f4 {[%clk 0:02:17]}  h5 {[%clk 0:00:48]} 26. f5 {[%clk 0:02:07]}  Bh7 {[%clk 0:00:45]} 27. h4 {[%clk 0:02:06]}  Rd3 {[%clk 0:00:43]} 28. Nxh5 {[%clk 0:01:40]}  Bxf5 {[%clk 0:00:42]} 29. Ng3 {[%clk 0:01:40]}  Bh7 {[%clk 0:00:40]} 30. Bf2 {[%clk 0:01:41]}  Rad8 {[%clk 0:00:39]} 31. Nf1 {[%clk 0:01:36]}  Kf7 {[%clk 0:00:33]} 32. Ne3 {[%clk 0:01:36]}  Be4 {[%clk 0:00:32]} 33. Nc2 {[%clk 0:01:30]}  f5 {[%clk 0:00:29]} 34. Na3 {[%clk 0:01:30]}  Rd2 {[%clk 0:00:25]} 35. Nb5 {[%clk 0:01:28]}  R8d7 {[%clk 0:00:26]} 36. h5 {[%clk 0:00:59]}  g6 {[%clk 0:00:24]} 37. hxg6+ {[%clk 0:00:51]}  Kxg6 {[%clk 0:00:25]} 38. Re3 {[%clk 0:00:52]}  Rb2 {[%clk 0:00:19]} 39. Rg3+ {[%clk 0:00:51]}  Kf6 {[%clk 0:00:16]} 40. Rh3 {[%clk 0:00:51]}  Rxb3 {[%clk 0:00:12]} 41. Bh4+ {[%clk 0:00:34]}  Kg6 {[%clk 0:00:11]} 42. Rg3+ {[%clk 0:00:34]}  Kf7 {[%clk 0:00:12]} 43. Rf1 {[%clk 0:00:25]}  Rb2 {[%clk 0:00:10]} 44. Rg5 {[%clk 0:00:23]}  Rdd2 {[%clk 0:00:09]} 45. Bf2 {[%clk 0:00:20]}  Bd3 {[%clk 0:00:07]} 46. Be3 {[%clk 0:00:10]}  Bxf1 {[%clk 0:00:07]} 47. Bxd2 {[%clk 0:00:10]}  Bxc4 {[%clk 0:00:05]} 48. Rxf5+ {[%clk 0:00:06]}  Ke6 {[%clk 0:00:05]} 49. Rf2 {[%clk 0:00:07]}  Bxb5 {[%clk 0:00:05]} 50. axb5 {[%clk 0:00:08]}  Rxb5 {[%clk 0:00:05]} 51. g4 {[%clk 0:00:08]}  e4 {[%clk 0:00:05]} 52. g5 {[%clk 0:00:09]}  Ne5 {[%clk 0:00:05]} 53. Rf6+ {[%clk 0:00:09]}  Ke7 {[%clk 0:00:06]} 54. Kg2 {[%clk 0:00:02]}  Nf3 {[%clk 0:00:06]} 55. Bf4 {[%clk 0:00:03]}  Nxg5 {[%clk 0:00:07]} 56. Rh6 {[%clk 0:00:03]}  Ne6 {[%clk 0:00:07]} 57. Rh7+ {[%clk 0:00:03]}  Kf6 {[%clk 0:00:07]} 58. Bxc7 {[%clk 0:00:04]}  Nxc7 {[%clk 0:00:05]} 59. Rxc7 {[%clk 0:00:05]}  Ke5 {[%clk 0:00:02]} 60. Kf2 {[%clk 0:00:06]}  a4 {[%clk 0:00:02]} 61. Ke3 {[%clk 0:00:06]}  a3 {[%clk 0:00:02]} 62. Re7+ {[%clk 0:00:06]}  Kd6 {[%clk 0:00:01]} 63. Rxe4 {[%clk 0:00:04]}  Ra5 {[%clk 0:00:02]} 64. Rd4+ {[%clk 0:00:05]}  Kc5 {[%clk 0:00:02]} 65. Rd1 {[%clk 0:00:05]}  Kc4 {[%clk 0:00:03]} 66. Ra1 {[%clk 0:00:06]}  Kxc3 {[%clk 0:00:03]} 67. Rc1+ {[%clk 0:00:05]}  Kb2 {[%clk 0:00:03]} 68. Rc7 {[%clk 0:00:05]}  a2 {[%clk 0:00:04]} 69. Rxb7+ {[%clk 0:00:05]}  Ka3 {[%clk 0:00:04]} 70. Kd3 {[%clk 0:00:02]}  a1=Q {[%clk 0:00:04]} 71. Kc4 {[%clk 0:00:01]}  Qc1+ {[%clk 0:00:04]} 0-1